bitfinex/quotes_SOLUSD_20240606
["timestamp","ask_amount","ask_price","bid_price","bid_amount"]
[1717656979436,5.85,171.87,171.84,45.17]
[1717656982046,5.85,171.86,171.84,45.17]
[1717656982561,2.1526,171.88,171.84,45.17]
[1717656982753,2.1523,171.91,171.85,120.0]
[1717656982956,10.908,171.93,171.85,120.0]
[1717656983142,2.1523,171.91,171.86,45.0]
[1717656983754,5.85,171.89,171.86,45.0]
[1717656984154,2.1523,171.91,171.86,45.0]
[1717656984355,5.85,171.89,171.86,45.0]
[1717656984557,4.3037,171.95,171.87,120.34]
[1717656984744,5.85,171.91,171.88,45.0]
[1717656985246,2.152,171.93,171.88,45.0]
[1717656985749,14.9666,171.97,171.89,120.17]
[1717656985750,2.1519,171.94,171.89,120.17]
[1717656985951,2.1519,171.94,171.89,126.4287]
[1717656986363,5.85,171.93,171.89,126.4287]
[1717656987166,2.1519,171.94,171.89,126.4287]
[1717656987348,5.85,171.93,171.89,126.4287]
[1717656988064,5.85,171.92,171.89,126.4287]
[1717656988277,5.85,171.92,171.9,45.0]
[1717656988446,5.85,171.93,171.9,45.0]
[1717656989061,2.1518,171.95,171.9,45.0]
[1717656989249,2.1517,171.96,171.91,0.17]
[1717656989565,2.1515,171.97,171.92,126.4563]
[1717656989767,2.1515,171.97,171.93,45.17]
[1717656990245,2.1516,171.96,171.93,45.0]
[1717656990447,2.1516,171.96,171.91,2.1078658]
[1717656990675,2.1516,171.96,171.91,53.6239658]
[1717656991173,2.1515,171.97,171.91,53.6239658]
[1717656991841,2.1516,171.96,171.91,53.6239658]
[1717656992149,5.85,171.95,171.91,53.6239658]
[1717656992454,5.85,171.94,171.91,53.6239658]
[1717656993373,5.85,171.92,171.91,1.9378658]
[1717656993663,5.85,171.92,171.86,126.1901]
[1717656993849,5.85,171.89,171.86,126.1901]
[1717656995167,5.85,171.89,171.87,45.0]
[1717656995463,2.152,171.93,171.87,45.0]
[1717656995647,2.152,171.93,171.88,0.34]
[1717656995648,5.85,171.91,171.88,0.34]
[1717656996452,2.1519,171.94,171.88,128.79960403]
[1717656996642,5.85,171.93,171.89,45.0]
[1717656996847,5.85,171.93,171.9,0.34]
[1717656997054,2.1519,171.94,171.9,0.34]
[1717656997256,5.85,171.92,171.89,45.0]
[1717657000275,2.1519,171.94,171.89,45.0]
[1717657000470,5.85,171.92,171.89,45.0]
[1717657002966,5.85,171.91,171.89,45.0]
[1717657003159,5.85,171.91,171.88,2.10820403]
[1717657003565,5.85,171.91,171.88,1.93820403]
[1717657011781,5.85,171.89,171.88,1.93820403]
[1717657015388,5.85,171.9,171.88,1.93820403]
[1717657016501,8.66736961,171.9,171.88,1.93820403]
[1717657016685,8.66736961,171.91,171.88,1.93820403]
[1717657017273,5.85,171.92,171.88,1.93820403]
[1717657019269,5.85,171.91,171.88,1.93820403]
[1717657021508,5.85,171.9,171.88,1.93820403]
[1717657026294,5.85,171.91,171.88,1.93820403]
[1717657026498,14.51842426,171.91,171.88,1.93820403]
[1717657026707,8.66842426,171.91,171.88,1.93820403]
[1717657026894,14.51842426,171.91,171.88,1.93820403]
[1717657027584,8.66842426,171.9,171.88,1.93820403]
[1717657032696,5.85,171.91,171.88,1.93820403]
[1717657033701,2.152,171.93,171.88,46.93820403]
[1717657033878,8.002,171.93,171.88,46.93820403]
[1717657034080,5.85,171.93,171.88,46.93820403]
[1717657036680,8.002,171.93,171.88,46.93820403]
[1717657036879,5.85,171.92,171.88,46.93820403]
[1717657037082,5.85,171.92,171.89,120.0]
[1717657037301,5.85,171.94,171.9,45.17]
[1717657037801,2.1518,171.95,171.9,45.17]
[1717657037802,2.1514,171.98,171.93,120.0]
[1717657038100,5.85,171.97,171.94,45.0]
[1717657039582,2.1514,171.98,171.94,45.0]
[1717657039802,5.85,171.96,171.94,45.0]
[1717657040600,2.1513,171.99,171.94,45.0]
[1717657040807,5.85,171.96,171.94,45.0]
[1717657041189,5.85,171.97,171.94,45.0]
[1717657042304,2.1513,171.99,171.95,0.17]
[1717657042491,5.85,171.96,171.94,45.0]
[1717657042697,2.1513,171.99,171.94,45.0]
[1717657042901,5.85,171.96,171.94,45.0]
[1717657045321,2.1513,171.99,171.94,45.0]
[1717657045507,5.85,171.96,171.94,45.0]
[1717657046193,2.1512,172.0,171.94,45.0]
[1717657046413,5.85,171.96,171.94,45.0]
[1717657047118,5.85,171.95,171.94,45.0]
[1717657047326,2.1512,172.0,171.94,45.0]
[1717657047505,5.85,171.96,171.94,45.0]
[1717657049520,5.85,171.97,171.94,45.0]
[1717657050207,5.85,171.96,171.94,45.0]
[1717657050403,5.85,171.96,171.92,0.34]
[1717657050404,5.85,171.95,171.92,0.34]
[1717657050613,5.85,171.94,171.9,20.0]
[1717657050818,5.85,171.94,171.91,45.34]
[1717657051122,5.85,171.94,171.92,20.0]
[1717657051418,5.85,171.94,171.9,20.0]
[1717657051921,5.85,171.94,171.9,6.2399]
[1717657052112,5.85,171.94,171.91,20.0]
[1717657055321,5.85,171.95,171.91,20.0]
[1717657055521,5.85,171.95,171.92,45.0]
[1717657058620,5.85,171.94,171.92,45.0]
[1717657060141,23.4,171.99,171.88,120.0]
[1717657060428,5.85,171.9,171.86,126.223]
[1717657060600,5.85,171.9,171.87,20.0]
[1717657061302,33.51413072,172.14,172.02,126.1039]
[1717657061563,9.48281658,172.17,172.02,126.1039]
[1717657061564,5.85,172.1,172.03,6.1039]
[1717657061701,5.85,172.1,171.98,27.19949095]
[1717657061702,5.85,172.06,172.0,120.0]
[1717657062026,5.85,172.07,172.01,51.19]
[1717657062226,5.85,172.06,172.01,45.34]
[1717657062410,5.85,172.06,172.01,45.0]
[1717657062602,5.85,172.05,171.98,126.2827]
[1717657062804,5.85,172.04,171.99,22.29834039]
[1717657063002,5.85,172.04,172.0,2.29834039]
[1717657063223,5.85,172.04,172.01,2.29834039]
[1717657063410,5.85,172.04,172.0,2.29834039]
[1717657063722,5.85,172.04,172.01,2.29834039]
[1717657063924,5.85,172.04,172.02,2.29834039]
[1717657064121,2.1502,172.07,172.03,2.29834039]
[1717657064306,2.1502,172.07,172.04,2.29834039]
[1717657064508,5.85,172.05,171.97,20.34]
[1717657064698,5.85,172.01,171.98,53.37312492]
[1717657064897,5.85,172.01,171.99,20.0]
[1717657065102,5.85,172.02,171.99,20.0]
[1717657065504,2.1502,172.07,171.97,0.34]
[1717657065505,5.85,172.0,171.97,0.34]
[1717657065704,5.85,172.0,171.97,45.17]
[1717657067416,5.85,171.99,171.96,15.7952596]
[1717657067613,5.85,171.98,171.96,15.7952596]
[1717657067828,2.1506,172.05,171.96,15.7952596]
[1717657068108,5.85,171.99,171.96,15.7952596]
[1717657068843,5.85,171.98,171.96,15.7952596]
[1717657069012,2.1508,172.03,171.96,15.7952596]
[1717657069210,5.85,171.98,171.96,15.7952596]
[1717657071218,5.85,171.97,171.96,15.7952596]
[1717657072024,5.85,171.98,171.96,15.7952596]
[1717657073925,16.9725,172.04,171.96,15.7952596]
[1717657074133,5.85,171.97,171.96,15.7952596]
[1717657075020,4.3015,172.03,171.96,15.7952596]
[1717657075209,5.85,171.97,171.96,15.7952596]
[1717657078943,5.85,171.97,171.91,9.94781188]
[1717657079232,5.85,171.96,171.92,45.0]
[1717657079441,2.1515,171.97,171.93,9.65025229]
[1717657079648,5.85,171.95,171.93,9.65025229]
[1717657080135,5.85,171.94,171.93,9.65025229]
[1717657082030,2.1517,171.96,171.93,9.65025229]
[1717657083634,6.4546,171.97,171.93,9.65025229]
[1717657083835,2.1518,171.95,171.87,120.0]
[1717657084085,2.1518,171.95,171.88,45.34]
[1717657085737,2.152,171.93,171.88,45.0]
[1717657085936,2.152,171.93,171.85,152.37689196]
[1717657086146,2.1529,171.86,171.85,10.65379196]
[1717657086349,65.17,171.95,171.79,137.01521294]
[1717657086551,4.3045,171.92,171.79,137.01521294]
[1717657086725,2.1528,171.87,171.79,137.01521294]
[1717657087239,2.1524,171.9,171.79,137.01521294]
[1717657087830,2.1525,171.89,171.79,137.01521294]
[1717657088063,2.1524,171.9,171.81,120.0]
[1717657088551,2.1525,171.89,171.81,120.0]
[1717657088932,2.1525,171.89,171.79,137.01521294]
[1717657089151,2.1525,171.89,171.8,20.17]
[1717657089334,2.1525,171.89,171.81,45.17]
[1717657090253,2.1525,171.89,171.81,45.0]
[1717657090751,2.1525,171.89,171.81,165.0]
[1717657090933,2.1521,171.93,171.84,120.0]
[1717657091139,20.0,171.95,171.86,120.0]
[1717657091334,2.1519,171.94,171.87,45.0]
[1717657091535,2.1519,171.94,171.86,120.0]
[1717657091862,16.5699,171.96,171.86,120.0]
[1717657092042,16.5699,171.96,171.87,45.0]
[1717657092244,2.1519,171.94,171.87,45.0]
[1717657092454,2.152,171.93,171.87,45.0]
[1717657093032,2.1518,171.95,171.87,45.0]
[1717657093225,10.4286,171.97,171.87,45.0]
[1717657093226,6.1255,171.97,171.89,120.0]
[1717657093432,6.1255,171.97,171.88,0.34]
[1717657093646,2.1517,171.95,171.88,0.34]
[1717657094326,2.1519,171.94,171.88,0.34]
[1717657095336,2.152,171.93,171.88,0.34]
[1717657095552,2.152,171.93,171.87,165.0]
[1717657095752,4.3026,171.99,171.91,120.0]
[1717657095938,4.3018,172.02,171.92,0.34]
[1717657096138,10.7546,172.02,171.92,0.34]
[1717657096357,4.302,172.01,171.92,0.34]
[1717657096565,4.302,172.01,171.92,0.17]
[1717657096856,2.1515,171.98,171.92,0.17]
[1717657098944,4.302,172.01,171.92,0.17]
[1717657099148,2.1513,171.99,171.92,0.34]
[1717657099869,2.1512,172.0,171.92,0.34]
[1717657100938,2.1512,171.99,171.92,0.34]
[1717657102038,2.1512,171.99,171.92,2.37677351]
[1717657104663,2.1514,171.98,171.92,2.37677351]
[1717657105368,2.1513,171.99,171.92,2.37677351]
[1717657106842,2.1514,171.98,171.92,2.37677351]
[1717657108356,2.1514,171.98,171.93,120.0]
[1717657108564,2.1514,171.98,171.94,2.03653659]
[1717657123968,2.1514,171.98,171.94,8.35613659]
[1717657127680,2.1513,171.99,171.94,6.3196]
[1717657130097,2.1514,171.98,171.94,6.3196]
[1717657138890,40.61104375,172.07,171.89,6.1315]
[1717657139082,2.1521,171.93,171.85,141.9686]
[1717657139276,8.67049692,171.92,171.86,1.9067611]
[1717657139492,2.1523,171.91,171.86,8.1697611]
[1717657139802,8.67049692,171.9,171.86,8.1697611]
[1717657139999,8.67049692,171.89,171.86,8.1697611]
[1717657140385,6.4557,171.95,171.86,8.1697611]
[1717657140386,22.90392091,172.0,171.86,1.9067611]
[1717657140589,2.1526,171.89,171.86,1.9067611]
[1717657140786,2.1526,171.89,171.82,6.3138]
[1717657140989,2.1526,171.88,171.82,6.3138]
[1717657141889,2.1527,171.88,171.82,6.3138]
[1717657142579,2.1529,171.87,171.81,120.0]
[1717657143316,2.1529,171.87,171.8,16.6978]
[1717657143601,2.1529,171.87,171.83,2.1532]
[1717657146409,2.1529,171.87,171.84,2.1531]
[1717657146714,15.0633,171.95,171.87,2.1526]
[1717657146915,4.304,171.94,171.84,120.0]
[1717657147087,6.1787,171.97,171.84,120.0]
[1717657147088,2.152,171.93,171.88,2.1525]
[1717657147483,2.152,171.93,171.85,0.34]
[1717657147678,2.1519,171.94,171.85,0.34]
[1717657147880,2.1517,171.95,171.87,120.0]
[1717657148099,2.1517,171.95,171.88,0.34]
[1717657148284,2.1516,171.96,171.89,120.0]
[1717657152710,2.1518,171.95,171.88,36.9579]
[1717657153412,15.12621793,171.97,171.88,20.34]
[1717657153618,2.1519,171.94,171.88,0.34]
[1717657153991,2.1519,171.94,171.87,0.34]
[1717657154208,2.1519,171.94,171.87,2.24665016]
[1717657154691,8.67151793,171.95,171.88,120.0]
[1717657154892,8.67151793,171.95,171.87,2.24665016]
[1717657154893,8.67151793,171.95,171.91,22.4478]
[1717657155110,2.1515,171.97,171.92,6.4422]
[1717657155313,2.1513,171.99,171.92,126.4422]
[1717657156313,4.3016,172.03,171.94,120.0]
[1717657156518,2.1511,172.0,171.94,120.0]
[1717657156706,8.6019,172.06,171.96,120.0]
[1717657156904,2.1508,172.03,171.96,120.0]
[1717657157503,2.1508,172.03,171.97,0.34]
[1717657162212,2.1507,172.04,171.98,120.0]
[1717657162405,2.1507,172.04,171.99,6.3536]
[1717657163018,2.1508,172.03,171.99,6.3536]
[1717657163226,2.1507,172.04,171.99,6.1836]
[1717657163527,2.1508,172.03,171.99,6.1836]
[1717657165834,2.1507,172.04,171.99,6.1836]
[1717657166330,2.1507,172.03,171.99,6.1836]
[1717657167035,2.1507,172.04,171.98,126.6637]
[1717657167941,6.2323,172.1,171.98,126.6637]
[1717657168247,6.4505,172.08,171.98,126.6637]
[1717657168615,2.1506,172.04,171.98,126.6637]
[1717657169226,2.1507,172.03,171.99,6.5345]
[1717657173730,10.7521,172.06,171.99,6.5345]
[1717657173731,2.1509,172.02,171.99,6.5345]
[1717657174125,2.1508,172.03,171.99,6.5345]
[1717657177241,2.1506,172.04,171.99,6.5345]
[1717657177538,2.1506,172.05,171.98,126.6319]
[1717657178221,2.1506,172.04,171.98,126.6319]
[1717657179427,2.1507,172.03,172.0,6.0444]
[1717657179740,2.1507,172.03,172.01,10.64388203]
[1717657179942,2.1507,172.04,172.01,10.64388203]
[1717657180442,2.1508,172.03,172.01,10.64388203]
[1717657181950,2.1506,172.04,172.01,10.64388203]
[1717657183723,2.1506,172.04,172.01,17.15838203]
[1717657183930,2.1506,172.04,172.02,10.64326327]
[1717657184327,2.1505,172.05,172.02,10.64326327]
[1717657184529,2.1506,172.04,172.02,10.64326327]
[1717657185438,2.1507,172.03,172.02,10.64326327]
[1717657186626,21.5076,172.03,172.02,10.64326327]
[1717657186825,2.1512,171.99,171.98,10.64573874]
[1717657187442,2.1515,171.98,171.93,6.1946]
[1717657187838,4.3024,172.0,171.93,6.1946]
[1717657188034,2.1515,171.98,171.93,6.1946]
[1717657188226,2.1515,171.97,171.93,6.1946]
[1717657188831,2.1515,171.97,171.9,120.0]
[1717657189033,2.1516,171.96,171.9,120.0]
[1717657189930,2.1515,171.97,171.9,130.65069312]
[1717657190939,2.1514,171.98,171.9,130.65069312]
[1717657191132,2.1514,171.98,171.91,0.34]
[1717657191340,2.1514,171.98,171.92,120.0]
[1717657191834,17.1888,172.03,171.92,120.0]
[1717657192040,2.1511,172.0,171.94,120.0]
[1717657193348,2.1512,171.99,171.94,120.0]
[1717657193659,2.1512,171.99,171.93,0.34]
[1717657193861,2.1512,172.0,171.93,0.34]
[1717657194238,2.1513,171.99,171.93,0.34]
[1717657195542,4.3021,172.01,171.93,0.34]
[1717657195741,2.1513,171.99,171.93,0.17]
[1717657197457,2.1512,172.0,171.94,120.0]
[1717657197655,8.66333538,171.98,171.94,120.0]
[1717657198039,8.66333538,171.98,171.94,126.1165]
[1717657198244,8.66333538,171.98,171.95,0.34]
[1717657198665,8.66333538,171.99,171.95,0.34]
[1717657199040,8.66333538,171.98,171.95,0.34]
[1717657199247,8.66333538,171.98,171.95,0.17]
[1717657200266,8.66333538,171.97,171.92,126.1096]
[1717657200474,8.66333538,171.97,171.93,0.34]
[1717657200773,8.66333538,171.98,171.93,0.34]
[1717657201351,8.66333538,171.98,171.93,0.17]
[1717657201549,8.66333538,171.96,171.93,0.17]
[1717657202161,8.66333538,171.96,171.92,0.34]
[1717657203380,8.66333538,171.96,171.95,126.5511]
[1717657203570,8.66333538,171.98,171.95,126.8911]
[1717657203871,8.66333538,171.99,171.96,0.17]
[1717657204166,8.66333538,171.99,171.97,120.0]
[1717657204672,8.66333538,172.0,171.97,120.0]
[1717657204967,8.66333538,172.0,171.97,126.5044]
[1717657205169,8.66333538,172.02,172.01,120.0]
[1717657205365,8.66333538,172.03,172.02,0.17]
[1717657205574,8.66333538,172.05,172.02,0.17]
[1717657206074,8.66333538,172.06,172.02,0.17]
[1717657206453,10.81373538,172.06,172.02,0.17]
[1717657207773,10.81373538,172.06,172.01,120.0]
[1717657208779,8.66333538,172.05,172.01,120.0]
[1717657208978,2.1504,172.06,172.01,120.0]
[1717657209555,2.1505,172.05,172.01,120.0]
[1717657210561,2.1504,172.06,172.01,120.0]
[1717657210961,2.1505,172.05,172.01,120.0]
[1717657212285,2.1507,172.04,172.0,0.34]
[1717657212580,2.1508,172.03,171.99,120.0]
[1717657212749,4.3011,172.05,171.97,120.0]
[1717657212956,2.1511,172.01,171.97,120.0]
[1717657213166,2.1511,172.0,171.97,120.0]
[1717657213368,2.1511,172.01,171.97,120.0]
[1717657215575,2.1509,172.02,171.97,120.0]
[1717657216463,2.151,172.01,171.97,120.0]
[1717657216777,2.1509,172.02,171.97,120.0]
[1717657216969,4.3012,172.05,171.97,120.0]
[1717657216970,2.1508,172.03,171.97,126.0847]
[1717657217180,2.1509,172.02,171.98,0.17]
[1717657218954,2.151,172.01,171.98,0.17]
[1717657219583,2.1509,172.02,171.98,0.17]
[1717657219774,2.151,172.01,171.98,0.17]
[1717657220861,2.1511,172.0,171.97,126.0847]
[1717657221061,2.1511,172.01,171.97,120.0]
[1717657221568,2.1513,171.99,171.97,120.0]
[1717657221892,2.1512,172.0,171.97,120.0]
[1717657223164,2.1511,172.01,171.97,120.0]
[1717657223668,5.85,171.98,171.97,120.0]
[1717657225361,5.85,171.98,171.93,6.0296]
[1717657225560,5.85,171.94,171.91,120.0]
[1717657225765,5.85,171.93,171.91,126.3879]
[1717657228679,2.1517,171.96,171.91,126.3879]
[1717657228890,2.1516,171.97,171.91,126.3879]
[1717657229185,5.85,171.93,171.91,126.3879]
[1717657230991,2.1516,171.96,171.92,10.32241939]
[1717657231176,5.85,171.93,171.92,10.32241939]
[1717657241691,4.3033,171.96,171.92,10.32241939]
[1717657241895,2.1519,171.94,171.93,4.29691117]
[1717657242187,8.0019,171.94,171.93,4.29691117]
[1717657242581,8.0019,171.94,171.9,2.1523]
[1717657242776,5.85,171.91,171.9,2.1523]
[1717657244711,5.85,171.91,171.87,1.90665016]
[1717657244712,19.2481,171.88,171.87,1.90665016]
[1717657244882,25.0981,171.88,171.87,1.90665016]
[1717657245070,2.1531,171.84,171.79,2.1537]
[1717657245275,5.85,171.8,171.79,2.1537]
[1717657246479,5.85,171.81,171.79,2.1537]
[1717657246698,2.1531,171.85,171.79,2.1537]
[1717657246901,5.85,171.81,171.8,2.1536]
[1717657251085,2.1531,171.85,171.8,2.1536]
[1717657251279,5.85,171.81,171.8,2.1536]
[1717657251979,5.85,171.81,171.79,2.1537]
[1717657253187,5.85,171.81,171.78,120.0]
[1717657254097,2.1531,171.84,171.78,126.3039]
[1717657254495,5.85,171.81,171.78,126.3039]
[1717657257817,5.85,171.81,171.8,2.1536]
[1717657258178,5.85,171.82,171.8,2.1536]
[1717657258507,5.85,171.83,171.8,2.1536]
[1717657259316,5.85,171.83,171.82,2.1534]
[1717657259603,5.85,171.9,171.85,120.0]
[1717657259811,5.85,171.9,171.86,2.1528]
[1717657260015,5.85,171.9,171.87,2.1527]
[1717657261218,2.1518,171.95,171.91,2.1521]
[1717657261420,5.85,171.94,171.9,120.0]
[1717657261627,5.85,171.94,171.91,2.1522]
[1717657261808,5.85,171.94,171.9,122.1523]
[1717657262124,5.85,171.93,171.9,122.1523]
[1717657262623,5.85,171.93,171.91,2.1522]
[1717657263403,2.1517,171.96,171.91,2.1522]
[1717657263726,2.1515,171.97,171.92,2.1521]
[1717657264027,5.85,171.94,171.92,2.1521]
[1717657266098,5.85,171.95,171.92,2.1521]
[1717657266498,5.85,171.95,171.93,2.1519]
[1717657266919,5.85,171.95,171.92,2.152]
[1717657267235,5.85,171.93,171.91,2.1522]
[1717657267595,5.85,171.92,171.9,2.1523]
[1717657269230,2.1521,171.92,171.86,120.0]
[1717657269524,5.85,171.9,171.88,2.1525]
[1717657269699,5.85,171.89,171.87,2.1527]
[1717657270119,4.3038,171.94,171.86,4.3058]
[1717657270423,5.85,171.9,171.89,2.1525]
[1717657270611,5.85,171.9,171.86,4.3058]
[1717657270612,5.85,171.9,171.88,2.1525]
[1717657271511,5.85,171.89,171.87,2.1527]
[1717657273926,5.85,171.89,171.88,2.1526]
[1717657274107,5.85,171.9,171.88,2.1526]
[1717657274508,5.85,171.91,171.88,2.1526]
[1717657275398,5.85,171.9,171.88,2.1526]
[1717657275601,5.85,171.9,171.83,16.6132]
[1717657275602,6.0376,171.9,171.8,120.0]
[1717657275914,5.85,171.85,171.81,24.307]
[1717657276115,16.1924,171.9,171.81,24.307]
[1717657276116,5.85,171.86,171.81,24.307]
[1717657276307,5.85,171.86,171.83,2.1532]
[1717657276706,5.85,171.85,171.83,2.1532]
[1717657276905,2.1527,171.88,171.84,2.1531]
[1717657277208,5.85,171.86,171.84,2.1531]
[1717657278725,2.1526,171.89,171.84,2.1531]
[1717657278935,5.85,171.87,171.84,2.153]
[1717657279104,5.85,171.87,171.82,132.594605]
[1717657279425,5.85,171.87,171.83,0.34]
[1717657279931,4.3042,171.93,171.84,120.0]
[1717657280135,5.85,171.89,171.86,2.1528]
[1717657280621,5.85,171.88,171.86,2.1528]
[1717657282130,5.85,171.88,171.87,2.1527]
[1717657282927,5.85,171.88,171.86,2.1528]
[1717657284431,5.85,171.88,171.87,2.1527]
[1717657285124,5.85,171.88,171.86,2.1528]
[1717657285329,23.4,171.9,171.82,1.907205]
[1717657285533,23.4,171.9,171.82,4.060605]
[1717657285534,5.85,171.83,171.82,4.060605]
[1717657286121,5.85,171.84,171.83,2.1532]
[1717657288530,5.85,171.84,171.82,2.1533]
[1717657288711,5.85,171.83,171.82,2.1533]
[1717657288906,2.1528,171.87,171.82,2.1533]
[1717657289116,5.85,171.84,171.81,4.307]
[1717657289331,5.85,171.84,171.83,2.1532]
[1717657290315,5.85,171.85,171.83,2.1532]
[1717657290712,42.7718,171.9,171.8,0.17]
[1717657290713,5.85,171.84,171.8,0.17]
[1717657290921,5.85,171.83,171.8,2.1536]
[1717657291119,5.85,171.82,171.8,2.1536]
[1717657292034,5.85,171.82,171.81,2.1535]
[1717657292445,2.1531,171.85,171.81,2.1535]
[1717657292743,5.85,171.82,171.81,2.1535]
[1717657293128,5.85,171.83,171.82,2.1534]
[1717657293832,5.85,171.83,171.79,4.3075]
[1717657294033,2.1529,171.86,171.79,4.3075]
[1717657294238,5.85,171.83,171.79,4.3075]
[1717657295944,2.1529,171.86,171.79,10.7688]
[1717657296240,5.85,171.83,171.81,2.1535]
[1717657297347,5.85,171.83,171.82,2.1534]
[1717657298020,5.85,171.83,171.81,2.1534]
[1717657298953,2.1529,171.86,171.81,2.1534]
[1717657299249,5.85,171.83,171.81,2.1534]
[1717657303748,5.85,171.82,171.8,2.1535]
[1717657304252,2.153,171.85,171.81,2.1535]
[1717657304436,5.85,171.82,171.81,2.1535]
[1717657305851,5.85,171.82,171.8,2.1535]
[1717657306652,5.85,171.82,171.78,126.6317]
[1717657306653,6.4777,171.85,171.73,5.85]
[1717657306953,2.1537,171.8,171.74,120.0]
[1717657307128,5.85,171.76,171.74,122.1543]
[1717657307327,5.85,171.76,171.74,2.1543]
[1717657308553,5.85,171.76,171.72,124.3092]
[1717657313745,2.1538,171.79,171.72,124.3092]
[1717657313938,5.85,171.76,171.72,124.3092]
[1717657314656,5.85,171.77,171.74,120.0]
[1717657314956,5.85,171.77,171.74,122.1543]
[1717657319454,5.85,171.77,171.74,120.0]
[1717657320156,5.85,171.77,171.74,122.1544]
[1717657320761,5.85,171.77,171.75,45.4952682]
[1717657323463,5.85,171.76,171.75,0.4952682]
[1717657323958,2.1535,171.81,171.76,120.0]
[1717657324132,5.85,171.79,171.77,47.494]
[1717657324536,5.85,171.78,171.77,47.494]
[1717657324949,5.85,171.79,171.77,47.494]
[1717657325258,5.85,171.79,171.77,53.9341]
[1717657326053,2.1534,171.82,171.78,122.1539]
[1717657326261,5.85,171.79,171.78,120.0]
[1717657326454,5.85,171.79,171.78,165.17]
[1717657326657,2.1536,171.81,171.78,165.17]
[1717657327144,5.85,171.79,171.78,165.17]
[1717657328156,5.85,171.79,171.78,45.17]
[1717657328464,5.85,171.79,171.77,47.154]
[1717657328657,5.85,171.78,171.76,47.154]
[1717657328849,5.85,171.77,171.76,2.154]
[1717657329048,5.85,171.77,171.76,2.324]
[1717657329353,5.85,171.77,171.76,2.154]
[1717657330541,8.004,171.77,171.75,0.4952682]
[1717657330748,5.85,171.76,171.75,0.4952682]
[1717657331913,2.1538,171.79,171.75,2.6494682]
[1717657332156,5.85,171.77,171.75,2.6494682]
[1717657332360,2.1537,171.8,171.76,2.1541]
[1717657332661,5.85,171.77,171.76,47.1541]
[1717657333563,5.85,171.77,171.76,2.1541]
[1717657335163,5.85,171.77,171.75,45.4952682]
[1717657335164,5.85,171.77,171.75,47.6494682]
[1717657336194,5.85,171.76,171.75,0.4952682]
[1717657337594,2.1538,171.79,171.75,2.6494682]
[1717657338994,5.85,171.76,171.75,0.4952682]
[1717657339567,19.3813,171.82,171.75,0.4952682]
[1717657339793,2.1538,171.79,171.75,0.4952682]
[1717657340975,27.7071,171.81,171.75,6.8985682]
[1717657341184,5.85,171.77,171.76,45.17]
[1717657341773,2.1537,171.8,171.76,45.17]
[1717657341995,5.85,171.78,171.76,2.324]
[1717657342694,2.1536,171.8,171.76,2.324]
[1717657342869,5.85,171.78,171.76,2.324]